Cogmind - Beta 13 @@@ ROGUE MODE // 2024.05.15 @ 16:53:36 Player: Gabe+Kate4EVR Result: Destroyed by S-43 Plague with Heavy Machine Gun Performance ------------- Evolutions (6) 3000 Regions Visited (16) 3200 Robots Destroyed (31) 155 Value Destroyed (597) 597 Prototype IDs (21) 420 Alien Tech Used (2) 400 Bonus (800) 800 TOTAL SCORE: 8572 Bonus ------- Entered DSFs 500 Met Zhirov 300 Cogmind --------- Core Integrity 0/1150 Matter 211/600 Energy 650/650 System Corruption 0% Temperature Cool (0) Movement Walking (120) Location -3/Proximity Caves Parts ------- > --- POWER (2) -------- Micro Antimatter Reactor > --- PROPULSION (10) -- Advanced Myomer Leg Advanced Myomer Leg Advanced Myomer Leg Gyrokinetic Inverter > --- UTILITY (5) ------ Advanced Energy Well Improved Matter Compressor Experimental Core Shielding Advanced Hacking Suite > --- WEAPON (2) ------- High-powered Shock Rifle > --- INVENTORY (5) ---- Compact Battery (200) Compact Battery (200) Peak State ------------ > --- POWER ------------ Fusion Reactor Micro Antimatter Reactor > --- PROPULSION ------- Advanced Myomer Leg Advanced Myomer Leg Advanced Myomer Leg Gyrokinetic Inverter VTOL Module > --- UTILITY ---------- Advanced Energy Well Improved Matter Compressor Experimental Core Shielding Advanced Hacking Suite System Shield > --- WEAPON ----------- Hardcell Cannon > --- INVENTORY -------- Compact Battery Compact Battery [Rating: 87] Favorites ----------- Power Enhanced Nuclear Core Engine Ion Engine Power Core Enhanced Nuclear Core Reactor Micro Antimatter Reactor Propulsion Improved Flight Unit Leg Advanced Myomer Leg Wheel Armored Wheel Hover Unit Airjet Flight Unit Improved Flight Unit Utility Small Storage Unit Device Advanced ECM Suite Storage Small Storage Unit Processor Enhanced Optical Array Hackware System Shield Protection Experimental Core Shielding Weapon Mini Grenade Launcher Energy Gun Small Laser Ballistic Gun Light Assault Rifle Ballistic Cannon Hardcell Cannon Launcher Mini Grenade Launcher Special Weapon Improved Plasma Cutter Build | -11 -10 -9 -8 -7 -7 -6 -6 -6 -5 -5 -5 -4 -4 -4 -4 -3 ------- Run | Yrd Mat Mat Mat Fac DSF Fac Ext Cet Fac Was Fac Fac Upp Upp Zhi Pro Slots Evolved 12 | . . 2 2 2 . 2 . . 2 . . 2 . . . . Power 1 | . . . . 1 . . . . . . . . . . . . Propulsion 8 | . . 2 2 . . 2 . . 2 . . . . . . . Utility 3 | . . . . 1 . . . . . . . 2 . . . . Weapon . | . . . . . . . . . . . . . . . . . Parts Attached 83 | 8 7 11 10 3 4 7 3 . . . 5 . 6 8 9 2 Power 15 | 1 1 1 3 1 1 1 1 . . . 1 . 1 1 2 . Engine 6 | 1 1 1 2 . . . 1 . . . . . . . . . Core 5 | . . . 1 1 1 1 . . . . . . 1 . . . Reactor 4 | . . . . . . . . . . . 1 . . 1 2 . Propulsion 33 | 2 4 7 5 1 . 3 1 . . . 2 . 3 2 3 . Treads . | . . . . . . . . . . . . . . . . . Leg 7 | 2 . 1 . . . 1 . . . . . . . . 3 . Wheel 1 | . . . . . . 1 . . . . . . . . . . Hover 2 | . . . . 1 . . . . . . . . . 1 . . Flight 23 | . 4 6 5 . . 1 1 . . . 2 . 3 1 . . Utility 18 | 2 . 1 1 1 1 3 1 . . . 1 . . 3 4 . Device 7 | 1 . 1 1 . . 3 . . . . . . . 1 . . Storage 4 | 1 . . . . . . . . . . . . . 1 2 . Processor 1 | . . . . . . . 1 . . . . . . . . . Hackware 4 | . . . . 1 . . . . . . 1 . . 1 1 . Protection 2 | . . . . . 1 . . . . . . . . . 1 . Artifact . | . . . . . . . . . . . . . . . . . Weapon 17 | 3 2 2 1 . 2 . . . . . 1 . 2 2 . 2 Energy Gun 2 | . . 1 . . . . . . . . . . . . . 1 Energy Cannon . | . . . . . . . . . . . . . . . . . Ballistic Gun 7 | 3 2 1 . . . . . . . . 1 . . . . . Ballistic Cannon 4 | . . . . . . . . . . . . . 2 1 . 1 Launcher 3 | . . . 1 . 2 . . . . . . . . . . . Special Weapon 1 | . . . . . . . . . . . . . . 1 . . Impact Weapon . | . . . . . . . . . . . . . . . . . Slashing Weapon . | . . . . . . . . . . . . . . . . . Piercing Weapon . | . . . . . . . . . . . . . . . . . Special Melee Weapon . | . . . . . . . . . . . . . . . . . Unidentified Prototypes 10 | . . 1 1 . . . . . . . . . 1 . 7 . Parts Lost 45 | . . 6 9 . 4 7 4 . . 1 2 . 4 4 . 4 Power 7 | . . 1 1 . 2 1 . . . . . . . 1 . 1 Propulsion 20 | . . 3 6 . 1 3 1 . . . 1 . 3 1 . 1 Utility 10 | . . 1 1 . 1 2 2 . . 1 . . . 1 . 1 Weapon 8 | . . 1 1 . . 1 1 . . . 1 . 1 1 . 1 Highest Loss Streak 8 | . . 5 8 . 2 6 4 . . 1 2 . 3 2 . 2 To Critical Strikes 1 | . . . . . . . . . . . . . 1 . . . Average Slot Usage (%) 46 | . 96 81 85 68 67 63 12 6 5 2 13 15 19 19 40 62 Engine 2 | . 12 9 6 7 1 . 1 . . . . . . . . . Core 1 | . . . . 5 5 5 . . . . . . . . . . Reactor 1 | . . . . . . . . . . . 3 5 4 1 3 9 Leg 4 | . 17 1 . . . 5 . . . . . . . . 9 15 Wheel 1 | . . . . . . 5 . . . . . . . . . . Hover 2 | . . . . 1 7 5 . . . . . . . 3 5 5 Flight 9 | . 10 34 45 23 20 6 2 . . . 6 5 7 2 5 4 Device 3 | . 14 3 7 7 4 6 4 . . . . . . . . . Storage 4 | . 14 11 9 7 7 5 . . . . . . . . 5 10 Hackware 3 | . . . . 7 7 5 . . . . 2 5 5 9 8 8 Ballistic Gun 4 | . 26 17 6 . . . . . . . . . . . . . Launcher 3 | . . . 2 7 8 12 2 . . . . . . . . . Naked Turns 119 | . . . . . . . 45 . . 26 48 . . . . . Heaviest Build 38 | 14 14 11 17 20 20 18 13 . . . 9 8 16 20 28 38 Greatest Support 90 | 20 20 19 27 13 13 16 6 3 3 3 20 13 17 11 90 90 Greatest Overweight (x) 4 | . 1 1 . 2 2 1 4 . . . . . 1 1 . . Average Overweight (x) . | . . . . . 1 . . . . . . . . . . . Largest Inventory Capacity 8 | 8 8 8 8 8 8 8 5 5 5 5 5 5 5 5 5 5 Average Capacity 6 | 7 8 8 8 8 8 7 5 5 5 5 5 5 5 5 5 5 Most Carried 8 | 2 8 8 8 6 8 8 5 5 5 5 5 3 5 5 4 2 Average Carried 5 | 1 5 6 7 6 6 7 4 5 4 5 3 3 3 3 3 2 Final Capacity 8 | 8 8 8 8 8 8 5 5 5 5 5 5 5 5 5 5 5 Final Carried 8 | 2 8 8 7 6 8 4 5 5 5 5 3 3 4 4 3 2 Class Distribution -------------------- 75% | Mutant 12% | Hacker-Mutant 6% | Scavenger-Mutant 5% | Scavenger-Sprinter Dominant Class ---------------- Mutant | -10/Materials Scavenger-Sprinter | -9/Materials Scavenger-Sprinter | -8/Materials Mutant | -7/Factory Mutant | -7/DSF Mutant | -6/Factory Mutant | -6/Extension Mutant | -6/Cetus Mutant | -5/Factory Mutant | -5/Waste Mutant | -5/Factory Mutant | -4/Factory Mutant | -4/Upper Caves Hacker-Mutant | -4/Upper Caves Hacker-Mutant | -4/Zhirov Mutant | -3/Proximity Caves Resources | -11 -10 -9 -8 -7 -7 -6 -6 -6 -5 -5 -5 -4 -4 -4 -4 -3 ----------- Run | Yrd Mat Mat Mat Fac DSF Fac Ext Cet Fac Was Fac Fac Upp Upp Zhi Pro Matter Collected 1210 | 208 108 252 7 . 43 . . . . . 165 178 121 107 . 21 Remotely . | . . . . . . . . . . . . . . . . . Salvage Created 640 | 11 127 242 17 . 135 . . . . . . . 90 18 . . Parts 58 | 3 15 18 4 . 10 . . . . . . . 5 3 . . Haulers Intercepted 2 | . . 1 . . 1 . . . . . . . . . . . Recyclers Shooed . | . . . . . . . . . . . . . . . . . Parts Field Recycled . | . . . . . . . . . . . . . . . . . Retrieved Matter . | . . . . . . . . . . . . . . . . . Parts Self-Destructed 4 | . . . . . . . . . . . . . 2 2 . . Prevented . | . . . . . . . . . . . . . . . . . Kills | -11 -10 -9 -8 -7 -7 -6 -6 -6 -5 -5 -5 -4 -4 -4 -4 -3 ------- Run | Yrd Mat Mat Mat Fac DSF Fac Ext Cet Fac Was Fac Fac Upp Upp Zhi Pro Combat Hostiles Destroyed 27 | . 6 9 2 . 7 . . . . . . . 2 1 . . Guns 15 | . 6 9 . . . . . . . . . . . . . . Cannons 3 | . . . . . . . . . . . . . 2 1 . . AOE 9 | . . . 2 . 7 . . . . . . . . . . . Classes Destroyed 9 | 1 3 2 1 . . . . . . . . . 2 . . . Tunneler 1 | 1 . . . . . . . . . . . . . . . . Hauler 2 | . . 1 . . 1 . . . . . . . . . . . Operator 1 | . 1 . . . . . . . . . . . . . . . Swarmer 15 | . 5 7 . . . . . . . . . . 2 1 . . Cutter 6 | . . . 2 . 4 . . . . . . . . . . . Grunt 5 | . 1 1 . . 3 . . . . . . . . . . . Sentry 1 | . . 1 . . . . . . . . . . . . . . Decomposer 2 | . . . . . . . . . . . . . 2 . . . Samaritan 2 | . . . . . . . . . . . . . 2 . . . Best Kill Streak 5 | 1 3 5 2 . 5 . . . . . . . 1 1 . . Combat Bots Only 5 | . 3 5 2 . 4 . . . . . . . 1 1 . . Max Kills in Single Turn 2 | 1 1 1 1 . 2 . . . . . . . 1 1 . . Gunslinging . | . . . . . . . . . . . . . . . . . Exploded 2 | . . . 1 . 2 . . . . . . . . . . . Melee . | . . . . . . . . . . . . . . . . . Uniques/NPCs Destroyed . | . . . . . . . . . . . . . . . . . Combat | -11 -10 -9 -8 -7 -7 -6 -6 -6 -5 -5 -5 -4 -4 -4 -4 -3 -------- Run | Yrd Mat Mat Mat Fac DSF Fac Ext Cet Fac Was Fac Fac Upp Upp Zhi Pro Hostile Shots Fired 708 | . 55 73 80 . 19 58 85 4 . 1 83 4 68 92 . 86 Missed 289 | . 20 32 41 . 6 14 40 1 . . 30 3 23 45 . 34 Damage Taken 7423 | . 288 439 826 . 682 699 744 94 . 55 854 24 849 874 . 995 Core 3572 | . 62 159 405 . 241 94 654 94 . 55 667 24 438 536 . 143 Absorbed by Shields 30 | . . . . . . . . . . . 30 . . . . . Redirected to Shielding 88 | . . . . . . . . . . . . . . . . 88 Ignored by Resistances 28 | . . . . . . 28 . . . . . . . . . . Regen/Repaired (Parts) 38 | . . . . . . 38 . . . . . . . . . . Core Remaining (%) 50 | 100 75 60 26 . 65 . . . . . 27 . . . . . Volleys Fired 117 | 2 32 40 4 . 11 . . . . . 11 . 15 2 . . Largest 2 | 2 2 2 1 . 2 . . . . . 1 . 1 1 . . Hottest 65 | 40 40 60 30 . 60 . . . . . 20 . 40 65 . . Shots Fired 174 | 4 49 75 4 . 14 . . . . . 11 . 15 2 . . Gun 141 | 4 49 75 2 . . . . . . . 11 . . . . . Cannon 17 | . . . . . . . . . . . . . 15 2 . . Launcher 16 | . . . 2 . 14 . . . . . . . . . . . Special . | . . . . . . . . . . . . . . . . . Kinetic 153 | 4 49 70 2 . . . . . . . 11 . 15 2 . . Thermal 5 | . . 5 . . . . . . . . . . . . . . Explosive 16 | . . . 2 . 14 . . . . . . . . . . . Electromagnetic . | . . . . . . . . . . . . . . . . . Robot Hit Streak 19 | 3 5 19 10 . 2 . . . . . 3 . 6 1 . . Robot Miss Streak 5 | . 5 4 1 . 1 . . . . . 3 . 1 1 . . Penetration Max . | . . . . . . . . . . . . . . . . . Secondary Targets . | . . . . . . . . . . . . . . . . . Shots Hit Robots 107 | 3 22 52 3 . 7 . . . . . 6 . 13 1 . . Core Hits 56 | 2 12 18 2 . 13 . . . . . 2 . 6 1 . . Critical Kills . | . . . . . . . . . . . . . . . . . Critical Parts Destroyed 2 | . . 1 1 . . . . . . . . . . . . . Critical Strikes 2 | . . 1 1 . . . . . . . . . . . . . Destroy 2 | . . 1 1 . . . . . . . . . . . . . Melee Attacks . | . . . . . . . . . . . . . . . . . Impact . | . . . . . . . . . . . . . . . . . Slashing . | . . . . . . . . . . . . . . . . . Piercing . | . . . . . . . . . . . . . . . . . Sneak Attacks . | . . . . . . . . . . . . . . . . . Combat Hostiles . | . . . . . . . . . . . . . . . . . Follow-up Attacks . | . . . . . . . . . . . . . . . . . Damage Inflicted 2079 | 29 211 454 151 . 675 . . . . . 46 . 474 39 . . Guns 758 | 29 211 454 18 . . . . . . . 46 . . . . . Cannons 513 | . . . . . . . . . . . . . 474 39 . . Explosions 808 | . . . 133 . 675 . . . . . . . . . . . Melee . | . . . . . . . . . . . . . . . . . Ramming . | . . . . . . . . . . . . . . . . . Kinetic 1229 | 29 211 412 18 . . . . . . . 46 . 474 39 . . Thermal 42 | . . 42 . . . . . . . . . . . . . . Explosive 808 | . . . 133 . 675 . . . . . . . . . . . Electromagnetic . | . . . . . . . . . . . . . . . . . Impact . | . . . . . . . . . . . . . . . . . Slashing . | . . . . . . . . . . . . . . . . . Piercing . | . . . . . . . . . . . . . . . . . Highest Corruption 9 | . . . . . . 9 9 9 . 6 6 . . . . . Average Corruption 6 | . . . . . . 4 9 9 . 6 6 . . . . . Corruption Purged . | . . . . . . . . . . . . . . . . . Corruption Blocked . | . . . . . . . . . . . . . . . . . Effects 12 | . . . . . . 4 3 . . 1 4 . . . . . Message Errors 1 | . . . . . . . 1 . . . . . . . . . Matter Fused 3 | . . . . . . 2 . . . . 1 . . . . . Heat Flow Errors 3 | . . . . . . 1 . . . 1 1 . . . . . Energy Discharges 1 | . . . . . . . 1 . . . . . . . . . Data Loss (minor) 4 | . . . . . . 1 1 . . . 2 . . . . . Overload Shots . | . . . . . . . . . . . . . . . . . Overflow Damage 61 | . . . . . 17 . . . . . . . 44 . . . Projectiles 44 | . . . . . . . . . . . . . 44 . . . Explosions 17 | . . . . . 17 . . . . . . . . . . . Melee . | . . . . . . . . . . . . . . . . . Knockbacks 2 | . . . . . . . . . . . . . 2 . . . Impact . | . . . . . . . . . . . . . . . . . Kinetic 2 | . . . . . . . . . . . . . 2 . . . Secondary . | . . . . . . . . . . . . . . . . . Self-Inflicted Damage 360 | . . . 49 . 311 . . . . . . . . . . . Shots 8 | . . . 1 . 7 . . . . . . . . . . . Rammed . | . . . . . . . . . . . . . . . . . Targets Rammed . | . . . . . . . . . . . . . . . . . Kicked . | . . . . . . . . . . . . . . . . . Crushed . | . . . . . . . . . . . . . . . . . Highest Temperature 343 | . 6 21 15 . . 258 305 . . 235 165 . 24 7 . 343 Average Temperature 64 | . 3 5 7 . . 142 177 . . 135 87 . 16 7 . 175 Received Heat Transfer 1920 | . 18 120 198 . 36 150 474 18 . . 261 9 168 73 . 395 Effects 1 | . . . . . . . . . . . . . . . . 1 Shutdowns 1 | . . . . . . . . . . . . . . . . 1 Siege Activations . | . . . . . . . . . . . . . . . . . Robots Corrupted . | . . . . . . . . . . . . . . . . . Combat Hostiles . | . . . . . . . . . . . . . . . . . Parts Fried . | . . . . . . . . . . . . . . . . . Impact Corruptions . | . . . . . . . . . . . . . . . . . Robots Melted . | . . . . . . . . . . . . . . . . . Combat Hostiles . | . . . . . . . . . . . . . . . . . Parts Melted . | . . . . . . . . . . . . . . . . . Heat Transferred 100 | . . 100 . . . . . . . . . . . . . . Parts Sabotaged . | . . . . . . . . . . . . . . . . . Parts Stolen . | . . . . . . . . . . . . . . . . . Parts Stripped . | . . . . . . . . . . . . . . . . . Power Chain Reactions . | . . . . . . . . . . . . . . . . . Alert | -11 -10 -9 -8 -7 -7 -6 -6 -6 -5 -5 -5 -4 -4 -4 -4 -3 ------- Run | Yrd Mat Mat Mat Fac DSF Fac Ext Cet Fac Was Fac Fac Upp Upp Zhi Pro Peak Influence 272 | 5 203 272 165 65 239 139 60 48 46 51 220 195 . . . . Initial 119 | . 3 85 63 65 . 119 1 33 26 16 35 105 . . . . Average 62 | . 102 147 122 8 62 41 8 43 27 33 98 121 . . . . Maximum Alert Level 1 | . 1 1 . . 1 . . . . . 1 . . . . . Low Security (%) 93 | 100 84 72 100 100 90 100 100 100 100 100 76 100 . . . . Level 1 6 | . 15 27 . . 9 . . . . . 23 . . . . . Level 2 . | . . . . . . . . . . . . . . . . . Level 3 . | . . . . . . . . . . . . . . . . . Level 4 . | . . . . . . . . . . . . . . . . . Level 5 . | . . . . . . . . . . . . . . . . . High Security . | . . . . . . . . . . . . . . . . . Max Security . | . . . . . . . . . . . . . . . . . Squads Dispatched 16 | . 2 1 2 . 1 5 . . 1 . 2 2 . . . . Investigation 4 | . 1 . . . . 2 . . . . . 1 . . . . Extermination 2 | . . . . . . 1 . . 1 . . . . . . . Reinforcement 9 | . 1 1 2 . 1 2 . . . . 1 1 . . . . Assault . | . . . . . . . . . . . . . . . . . Garrison 1 | . . . . . . . . . . . 1 . . . . . Intercept . | . . . . . . . . . . . . . . . . . Searches Triggered . | . . . . . . . . . . . . . . . . . Construction Impeded . | . . . . . . . . . . . . . . . . . Haulers Reinforced . | . . . . . . . . . . . . . . . . . Active Scanning Responses . | . . . . . . . . . . . . . . . . . Cargo Convoy Interrupts . | . . . . . . . . . . . . . . . . . Stealth | -11 -10 -9 -8 -7 -7 -6 -6 -6 -5 -5 -5 -4 -4 -4 -4 -3 --------- Run | Yrd Mat Mat Mat Fac DSF Fac Ext Cet Fac Was Fac Fac Upp Upp Zhi Pro Distress Signals 5 | . 2 1 . . . . . . . . 1 1 . . . . Communications Jammed . | . . . . . . . . . . . . . . . . . Distress Signals . | . . . . . . . . . . . . . . . . . Times Spotted 166 | . 12 20 17 . 9 14 4 5 2 6 19 7 25 13 . 13 Peak Tracking Total 19 | . 5 8 10 . 4 5 4 5 2 6 12 6 19 12 . 9 Tactical Retreats 19 | . . 3 1 . 2 3 2 . . . 3 1 3 . . 1 Traps | -11 -10 -9 -8 -7 -7 -6 -6 -6 -5 -5 -5 -4 -4 -4 -4 -3 ------- Run | Yrd Mat Mat Mat Fac DSF Fac Ext Cet Fac Was Fac Fac Upp Upp Zhi Pro Traps Triggered 5 | . 1 . . . . 2 . . 1 . 1 . . . . . Indirectly . | . . . . . . . . . . . . . . . . . Trap Hack Attempts . | . . . . . . . . . . . . . . . . . Triggered . | . . . . . . . . . . . . . . . . . Disarmed . | . . . . . . . . . . . . . . . . . Reprogrammed . | . . . . . . . . . . . . . . . . . Reused . | . . . . . . . . . . . . . . . . . Traps Extracted . | . . . . . . . . . . . . . . . . . Installed . | . . . . . . . . . . . . . . . . . Triggered . | . . . . . . . . . . . . . . . . . Machines | -11 -10 -9 -8 -7 -7 -6 -6 -6 -5 -5 -5 -4 -4 -4 -4 -3 ---------- Run | Yrd Mat Mat Mat Fac DSF Fac Ext Cet Fac Was Fac Fac Upp Upp Zhi Pro Machines Disabled 1 | . . . . . 1 . . . . . . . . . . . Max in Single Turn 1 | . . . . . 1 . . . . . . . . . . . Machines Repaired . | . . . . . . . . . . . . . . . . . Machines Dismantled . | . . . . . . . . . . . . . . . . . Machines Sabotaged . | . . . . . . . . . . . . . . . . . Overloaded Fab Kills . | . . . . . . . . . . . . . . . . . Hacking | -11 -10 -9 -8 -7 -7 -6 -6 -6 -5 -5 -5 -4 -4 -4 -4 -3 --------- Run | Yrd Mat Mat Mat Fac DSF Fac Ext Cet Fac Was Fac Fac Upp Upp Zhi Pro Machines Accessed 27 | . . 4 . 2 . 6 . . 3 . 1 1 . 2 8 . Terminals 13 | . . 4 . 2 . 5 . . 1 . 1 . . . . . Fabricators 2 | . . . . . . . . . 2 . . . . . . . Repair Stations 1 | . . . . . . 1 . . . . . . . . . . Recycling Units 1 | . . . . . . . . . . . . 1 . . . . Scanalyzers . | . . . . . . . . . . . . . . . . . Garrison Access . | . . . . . . . . . . . . . . . . . Total Hacks 86 | . . 10 . 5 . 15 . . 3 . 1 2 . 3 47 . Successful 65 | . . 3 . 2 . 6 . . 3 . 1 . . 3 47 . Failed 21 | . . 7 . 3 . 9 . . . . . 2 . . . . Catastrophic 5 | . . 3 . . . 1 . . . . . 1 . . . . Database Lockouts . | . . . . . . . . . . . . . . . . . Manual 21 | . . 8 . 4 . 9 . . . . . . . . . . Terminals 29 | . . 10 . 5 . 12 . . 1 . 1 . . . . . Fabricators 2 | . . . . . . . . . 2 . . . . . . . Repair Stations 3 | . . . . . . 3 . . . . . . . . . . Recycling Units 2 | . . . . . . . . . . . . 2 . . . . Scanalyzers . | . . . . . . . . . . . . . . . . . Garrison Access . | . . . . . . . . . . . . . . . . . Terminal Hacks 61 | . . 3 . 2 . 4 . . 1 . 1 . . 3 47 . Record 37 | . . . . . . . . . . . . . . 2 35 . Part Schematic 4 | . . . . . . . . . . . . . . . 4 . Robot Analysis 4 | . . . . . . . . . . . . . . . 4 . Prototype ID Bank 5 | . . 1 . . . . . . . . . . . . 4 . Open Door 2 | . . . . . . 1 . . . . . . . 1 . . Open DSF 4 | . . . . 1 . 1 . . 1 . 1 . . . . . Unreport Threat 5 | . . 2 . 1 . 2 . . . . . . . . . . Fabricator Hacks 2 | . . . . . . . . . 2 . . . . . . . Build 2 | . . . . . . . . . 2 . . . . . . . Repair Station Hacks 2 | . . . . . . 2 . . . . . . . . . . Scan Component 1 | . . . . . . 1 . . . . . . . . . . Repair 1 | . . . . . . 1 . . . . . . . . . . Recycling Unit Hacks . | . . . . . . . . . . . . . . . . . Scanalyzer . | . . . . . . . . . . . . . . . . . Garrison Access Hacks . | . . . . . . . . . . . . . . . . . Unauthorized Hacks . | . . . . . . . . . . . . . . . . . Terminals . | . . . . . . . . . . . . . . . . . Fabricators . | . . . . . . . . . . . . . . . . . Repair Stations . | . . . . . . . . . . . . . . . . . Recycling Units . | . . . . . . . . . . . . . . . . . Scanalyzers . | . . . . . . . . . . . . . . . . . Garrison Access . | . . . . . . . . . . . . . . . . . Data Cores Recovered . | . . . . . . . . . . . . . . . . . Used . | . . . . . . . . . . . . . . . . . Hacking Detections 11 | . . 4 . 1 . 4 . . 1 . . 1 . . . . Full Trace Events 2 | . . . . . . 1 . . . . . 1 . . . . Feedback Events . | . . . . . . . . . . . . . . . . . Feedback Blocked . | . . . . . . . . . . . . . . . . . Robot Schematics Acquired . | . . . . . . . . . . . . . . . . . Robots Built . | . . . . . . . . . . . . . . . . . Authchips . | . . . . . . . . . . . . . . . . . Time . | . . . . . . . . . . . . . . . . . Total Robot Build Rating . | . . . . . . . . . . . . . . . . . Part Schematics Acquired 4 | . . . . . . . . . . . . . . . 4 . Parts Built 4 | . . . . . . . . . 4 . . . . . . . Authchips . | . . . . . . . . . . . . . . . . . Time 256 | . . . . . . . . . 256 . . . . . . . Total Part Build Rating 32 | . . . . . . . . . 32 . . . . . . . Parts Repaired 1 | . . . . . . 1 . . . . . . . . . . Time 51 | . . . . . . 51 . . . . . . . . . . Parts Recycled . | . . . . . . . . . . . . . . . . . Recycled Matter . | . . . . . . . . . . . . . . . . . Retrieved Matter . | . . . . . . . . . . . . . . . . . Retrieved Components . | . . . . . . . . . . . . . . . . . Parts Scanalyzed . | . . . . . . . . . . . . . . . . . Part Schematics Acquired . | . . . . . . . . . . . . . . . . . Parts Damaged . | . . . . . . . . . . . . . . . . . Bothacking | -11 -10 -9 -8 -7 -7 -6 -6 -6 -5 -5 -5 -4 -4 -4 -4 -3 ------------ Run | Yrd Mat Mat Mat Fac DSF Fac Ext Cet Fac Was Fac Fac Upp Upp Zhi Pro Used RIF Installer . | . . . . . . . . . . . . . . . . . Robots Hacked . | . . . . . . . . . . . . . . . . . Non-combat . | . . . . . . . . . . . . . . . . . Combat . | . . . . . . . . . . . . . . . . . Robot Hacks Applied . | . . . . . . . . . . . . . . . . . Relay Couplers Released . | . . . . . . . . . . . . . . . . . Fabnet Peak Effective % . | . . . . . . . . . . . . . . . . . Robots Rewired . | . . . . . . . . . . . . . . . . . Allies Hacked . | . . . . . . . . . . . . . . . . . Hacks Repelled . | . . . . . . . . . . . . . . . . . Allies | -11 -10 -9 -8 -7 -7 -6 -6 -6 -5 -5 -5 -4 -4 -4 -4 -3 -------- Run | Yrd Mat Mat Mat Fac DSF Fac Ext Cet Fac Was Fac Fac Upp Upp Zhi Pro Total Allies 1 | . . . . . . . . . . 1 . . . . . . Largest Group 1 | . . . . . . . . . . 1 . . . . . . Highest-Rated Group 31 | . . . . . . . . . . 31 . . . . . . Highest-Rated Ally 31 | . . . . . . . . . . 31 . . . . . . Total Orders . | . . . . . . . . . . . . . . . . . Ally Attacks . | . . . . . . . . . . . . . . . . . Total Damage . | . . . . . . . . . . . . . . . . . Kills . | . . . . . . . . . . . . . . . . . Allies Corrupted . | . . . . . . . . . . . . . . . . . Allies Melted . | . . . . . . . . . . . . . . . . . Intel | -11 -10 -9 -8 -7 -7 -6 -6 -6 -5 -5 -5 -4 -4 -4 -4 -3 ------- Run | Yrd Mat Mat Mat Fac DSF Fac Ext Cet Fac Was Fac Fac Upp Upp Zhi Pro Robot Analysis Total 4 | . . . . . . . . . . . . . . . 4 . Derelict Logs Recovered 1 | . . . . . . . . . . . . . . 1 . . Drone Launches . | . . . . . . . . . . . . . . . . . Drone Recoveries . | . . . . . . . . . . . . . . . . . Exploration | -11 -10 -9 -8 -7 -7 -6 -6 -6 -5 -5 -5 -4 -4 -4 -4 -3 ------------- Run | Yrd Mat Mat Mat Fac DSF Fac Ext Cet Fac Was Fac Fac Upp Upp Zhi Pro Turns Passed 3066 | 113 297 197 115 55 148 618 147 29 347 57 145 70 244 225 159 100 Spaces Moved 3436 | 78 142 162 213 66 94 544 247 56 169 99 253 159 474 384 215 81 Core 543 | 4 . . . . . . 117 56 169 99 73 . . 25 . . Treads . | . . . . . . . . . . . . . . . . . Legs 307 | 74 61 7 . . . 3 . . . . . . . . 81 81 Wheels 524 | . . . . . . 524 . . . . . . . . . . Hover 170 | . . . . 9 48 . . . . . . . . 113 . . Flight 1892 | . 81 155 213 57 46 17 130 . . . 180 159 474 246 134 . Fastest Speed 25 | 50 37 31 25 32 32 37 40 50 50 50 39 40 32 35 35 120 Average Speed 63 | 116 101 40 27 75 119 101 58 50 50 50 42 40 42 53 67 120 Slowest Speed 250 | 120 120 120 34 180 180 120 250 50 50 50 50 40 120 110 120 120 Overloaded Moves . | . . . . . . . . . . . . . . . . . Propulsion Burnouts . | . . . . . . . . . . . . . . . . . Robots Hopped 32 | . 3 4 12 . . . 2 . . . 6 . 5 . . . Cave-ins Triggered . | . . . . . . . . . . . . . . . . . Teleports 1 | . . . . . . . . . . . . . . . 1 . Exploration Rate (%) 31 | 4 31 21 21 2 53 20 41 23 5 78 11 7 74 61 62 20 Regions Visited 16 Branch Regions 6 Pre-discovered Areas 3 | . . . . . . . . . . . . . . . 3 . Known Exits Taken 1 | . . . . 1 . . . . . . . . . . . . Unknown Exits Taken 12 | 1 1 1 1 . . 1 1 1 . . 1 1 1 1 1 . Scrap Searched 3 | . . . . . . . . . . . . . 1 1 . 1 Spaces Dug . | . . . . . . . . . . . . . . . . . Terrain Destroyed 87 | . . . 16 . 68 . . . . . . . 2 1 . . Melee . | . . . . . . . . . . . . . . . . . Projectile 3 | . . . . . . . . . . . . . 2 1 . . AOE 84 | . . . 16 . 68 . . . . . . . . . . . Terrain Rammed . | . . . . . . . . . . . . . . . . . Walls Destroyed . | . . . . . . . . . . . . . . . . . Machines Disabled . | . . . . . . . . . . . . . . . . . Actions | -11 -10 -9 -8 -7 -7 -6 -6 -6 -5 -5 -5 -4 -4 -4 -4 -3 --------- Run | Yrd Mat Mat Mat Fac DSF Fac Ext Cet Fac Was Fac Fac Upp Upp Zhi Pro Total 4106 | 92 254 226 251 69 115 610 249 56 433 105 274 164 498 402 225 83 Wait 430 | 4 58 12 31 . 2 51 . . 256 7 . 6 1 2 . . Move 3361 | 77 136 153 189 66 93 543 242 55 169 98 240 158 464 383 214 81 Hop 29 | . 2 4 11 . . . 2 . . . 6 . 4 . . . Pick Up 34 | 1 9 2 4 . 2 5 . . 4 . 1 . 3 3 . . Fast Attach 55 | 7 4 7 5 2 3 4 2 . . . 2 . 4 4 10 1 Attach 23 | . 1 3 3 1 1 2 1 . . . 3 . 2 4 1 1 Detach 10 | . 1 2 . . 1 . 2 . . . . . 2 2 . . Swap 7 | 1 2 1 2 . . 1 . . . . . . . . . . Drop 29 | . 9 2 2 . 2 4 . 1 4 . . . 3 2 . . Fire 117 | 2 32 40 4 . 11 . . . . . 11 . 15 2 . . Melee . | . . . . . . . . . . . . . . . . . Ram . | . . . . . . . . . . . . . . . . . Kick . | . . . . . . . . . . . . . . . . . Crush . | . . . . . . . . . . . . . . . . . Escape Stasis 11 | . . . . . . . . . . . 11 . . . . . Rewire . | . . . . . . . . . . . . . . . . . Trap . | . . . . . . . . . . . . . . . . . Miscellaneous . | . . . . . . . . . . . . . . . . . Route ------- -11/Scrapyard -10/Materials (discovered 2 exits: *Mat / [*Min]) -9/Materials (discovered 2 exits: [*Mat] / [*Min]) -8/Materials -7/Factory -7/DSF -6/Factory -6/Extension (discovered 2 exits: *Fac / [*Cet]) -6/Cetus -5/Factory -5/Waste -5/Factory -4/Factory -4/Upper Caves -4/Upper Caves -4/Zhirov -3/Proximity Caves History --------- Turn | Location | Event 3 | -11/Scrapyard | Discovered new exit (range 15) 114 | -11/Scrapyard | Entered Materials 165 | -10/Materials | Discovered new exit (range 16) 405 | -10/Materials | Discovered new exit (range 5) 411 | -10/Materials | Entered another Materials area 411 | -9/Materials | Evolved 2 slots: Propulsion x2 504 | -9/Materials | Lost 5 parts (1p2n1u1w) 572 | -9/Materials | Discovered new exit (range 12) 604 | -9/Materials | Discovered new exit (range 15) 608 | -9/Materials | Entered another Materials area 608 | -8/Materials | Evolved 2 slots: Propulsion x2 703 | -8/Materials | Core integrity fell below 50% 722 | -8/Materials | Discovered new exit (range 3) 723 | -8/Materials | Entered Factory 723 | -7/Factory | Evolved 2 slots: Power x1, Utility x1 752 | -7/Factory | Lost 8 parts (1p5n1u1w) 778 | -7/Factory | Identified exit to DSF 778 | -7/Factory | Entered DSF 814 | -7/DSF | Discovered new exit (range 11) 825 | -7/DSF | Additional patrols routed to DSF 926 | -7/DSF | Entered Factory 926 | -6/Factory | Evolved 2 slots: Propulsion x2 983 | -6/Factory | Build established: Mutant 1248 | -6/Factory | Repaired Imp. Flight Unit 1540 | -6/Factory | Discovered new exit (range 6) 1544 | -6/Factory | Entered Extension 1562 | -6/Extension | Lost 6 parts (1p2n2u1w) 1576 | -6/Extension | Spotted B-75 Beast 1595 | -6/Extension | Spotted B-75 Beast 1600 | -6/Extension | Core integrity fell below 50% 1604 | -6/Extension | Core integrity fell below 20% 1634 | -6/Extension | Lost 4 parts (1n2u1w) 1640 | -6/Extension | Discovered new exit (range 16) 1640 | -6/Extension | Discovered new exit (range 15) 1691 | -6/Extension | Entered Cetus 1697 | -6/Cetus | Spotted Cetus Guard 1697 | -6/Cetus | Spotted Cetus Guard 1697 | -6/Cetus | Spotted Cetus Guard 1697 | -6/Cetus | Spotted Cetus Guard 1708 | -6/Cetus | Discovered new exit (range 22) 1720 | -6/Cetus | Entered Factory 1720 | -5/Factory | Evolved 2 slots: Propulsion x2 1876 | -5/Factory | Fabricated Adv. Force Field (x2) 2033 | -5/Factory | Fabricated Mic. Antimatter Reactor (x2) 2067 | -5/Factory | Sucked down chute 2067 | -5/Factory | Entered Waste 2068 | -5/Waste | Met a frightened Derelict 2082 | -5/Waste | EMP discharged 2089 | -5/Waste | Spotted C-40 Crusher 2094 | -5/Waste | Spotted C-40 Crusher 2094 | -5/Waste | Spotted C-40 Crusher 2095 | -5/Waste | Spotted C-40 Crusher 2098 | -5/Waste | Crushed by Compactor (1 part destroyed) 2100 | -5/Waste | Spotted C-40 Crusher 2110 | -5/Waste | Spotted C-40 Crusher 2111 | -5/Waste | Discovered new exit (range 12) 2124 | -5/Waste | Entered Factory 2170 | -5/Factory | Core integrity fell below 50% 2241 | -5/Factory | Garrison activated, responded to threat 2263 | -5/Factory | Discovered new exit (range 15) 2269 | -5/Factory | Entered another Factory area 2269 | -4/Factory | Evolved 2 slots: Utility x2 2328 | -4/Factory | Discovered new exit (range 9) 2339 | -4/Factory | Entered Upper Caves 2415 | -4/Upper Caves | Attracted the attention of an 0b10 checkpoint 2485 | -4/Upper Caves | Attacked by a faux Warlord 2567 | -4/Upper Caves | Discovered new exit (range 5) 2569 | -4/Upper Caves | Attracted the attention of an 0b10 base 2583 | -4/Upper Caves | Entered another Upper Caves area 2591 | -4/Upper Caves | Learned 4 Research zone layouts 2608 | -4/Upper Caves | Learned Extension stockpile data 2614 | -4/Upper Caves | Lost 3 parts (2n1w) 2656 | -4/Upper Caves | Core integrity fell below 50% 2763 | -4/Upper Caves | Attracted the attention of an 0b10 base 2786 | -4/Upper Caves | Core integrity fell below 20% 2805 | -4/Upper Caves | Attracted the attention of an 0b10 checkpoint 2805 | -4/Upper Caves | Discovered new exit (range 8) 2808 | -4/Upper Caves | Entered Zhirov 2808 | -4/Zhirov | Discovered new exit (range 3) 2815 | -4/Zhirov | Met Zhirov 2826 | -4/Zhirov | Learned location of Quarantine (-2) 2826 | -4/Zhirov | Learned location of Testing (-3) 2826 | -4/Zhirov | Learned location of Command (-1) 2829 | -4/Zhirov | Zhirov requested help retrieving the SGEMP Prototype 2835 | -4/Zhirov | Found Alien Artifact 2835 | -4/Zhirov | Identified Integrated Reactor 2835 | -4/Zhirov | Installed Integrated Reactor, increased core energy generation (+10) 2840 | -4/Zhirov | Found Alien Artifact 2840 | -4/Zhirov | Identified Transdimensional Reconstructor 2840 | -4/Zhirov | Warped through subspace 2967 | -4/Zhirov | Entered Proximity Caves 3039 | -3/Proximity Caves | Spotted B-86 Titan 3067 | -3/Proximity Caves | Destroyed by S-43 Plague with Heavy Machine Gun Last Messages --------------- 03050_ Penetrated by Slug. 03050_ Slug penetrates Wall. 03055_ Penetrated by Slug. 03059_ Slug penetrates Wall. 03059_ Fusion Reactor destroyed. 03059_ Slug penetrates Wall. 03059_ Penetrated by Slug. 03059_ VTOL Module destroyed. 03061_ Penetrated by Slug. 03062_ Searching scrap... 03062_ Found Unknown Device. 03062_ Found Hpw. Shock Rifle. 03062_ Found 18 Matter. 03063_ Acquired 18 matter. 03064_ Slug penetrates Wall. 03064_ Penetrated by Slug. 03064_ S-43 Plague knocked back. 03064_ Acquired Hpw. Shock Rifle. 03067_ Penetrated by Slug. 03067_ Slug penetrates Wall. Map ----- +----------------------------------------------------+ | ?????????????????????????????????????????????????? | | ?????????????????????????????????????????????????? | | ?????????????????????????????????????????????????? | | ?????????????????????????????????????????????????? | | ?????????????????????????????????????????????????? | | ?????????????????????????????????????????????????? | | ?????????????????????????????????????????????????? | | ?????????????????????????????????????????????????? | | ?????????????????????????????????????????????????? | | ?????????????????????????????????????????????????? | | ?????????????????????????????????????????????????? | | ?????????????????????????????????????????????????? | | ???????????????????? ???????????????????????????? | | ???????????????????? ???????????????????????????? | | ???????????????????? ?????????????????????????? | | ????????????#??????? ????????????????????????? | | ???????????? ####??? ????????????????????????? | | #???????????? "??? ?????????????????????????? | | # ??##???????? #??# ??????????????????????????? | | # ## ???????# #??# #??????????????????????????? | | #?????## ##?# #????????????? ???????????? | | #??### ### #??????????? ???????????? | | ?? ?## #????????? ?????????? | | ????? ## #???????? $ ??????????? | | ????????# ;###### #???????????????? | | ????????# @ #???????????????? | | ????????# h% ssss #??????????????? | | ????????# BB s ##### #?????????????? | | ######### BB# g% ##????### #?????????????? | | # # h;;# #?????????## #????????????? | | # #### # #?# #??????????? #???????????? | | # #??# # #?# #???????????? #??????????? | | # #??# #?# ##????????????????????????? | | # #??# #?# ????????????????????????? | | #??# % #?# ## ???????????????????????? | | ###??## ###? #? ?????????????????????? | | ??????# ## ##?? ### #?? ????????????????????? | | ??????# ## #??? #??###??? ???????????????????? | | ??????# ## ?? #?????????#???????????????????? | | ??????# ####### ?????????????????????????????? | | ??????# #?????# ##?????????????????????????????? | | ?????? #?????## ???????????????????????????????? | | ?????###??????###???????????????????????????????? | | ????????????????????????????????????????????????? | | #????????????????????????????????????????????????? | | ?????????????????????????????????????????????????? | | ?????????????????????????????????????????????????? | | ?????????????????????????????????????????????????? | | ?????????????????????????????????????????????????? | | ?????????????????????????????????????????????????? | +----------------------------------------------------+ Best States ------------- Heat Dissipation 43 Energy Generation 47 Energy Capacity 845 Matter Stores 300 Matter Capacity 600 Sight Range 22 Terrain Scan Density 10 ECM Strength 2 Armor Coverage 150 Resistance: EM 25 Core Shielding 40 Evasion (%) 65 Offensive Hacking 14 Defensive Hacking 22 Item Schematics ----------------- Assault Drone Bay | -4/Zhirov | Free Exp. Heat Sink | -4/Zhirov | Free Exp. Optical Array | -4/Zhirov | Free Imp. Arc Thrower | -4/Zhirov | Free Robot Schematics ------------------ None Fabricated ------------ Adv. Force Field | x2 | -5/Factory | Preloaded Mic. Antimatter Reactor | x2 | -5/Factory | Preloaded Alien Tech Used ----------------- Integrated Reactor Transdimensional Reconstructor Achievements -------------- Streaker Challenges ------------ None Game ------ Seed ShrapnelFactoryTriangulator Manual? 0 Play Time 00:33:39 Cumulative 166.3 hours Start 2024.05.15 @ 15:17:37 End 2024.05.15 @ 16:53:36 Sessions 1 Manual Loads 0 Difficulty Rogue Special Mode None Game No. 328 Rogue 328 Adventurer 0 Explorer 0 Win Type - Total 0 Types 0/0/0/0/0/0/0/0/0 Lore% 46 Gallery% 63 Achievement% 44 Wizard Run 0 Options --------- Layout 0 ASCII 0 Keyboard 1 Movement Numpad Keybinds 0 Fullscreen 2 Font 18/X11 Map View 76x50 Zoom Use 0% Tactical HUD 1 Map Filters NONE Filters NONE Steam 1 RUN: d0620715-f2e1-4abf-b98b-729249cf54f9